bitfinex-derivatives/quotes_ETHF0:USTF0_20250123
["timestamp","ask_amount","ask_price","bid_price","bid_amount"]
[1737604292716,3.82898,3221.7,3221.3,0.62125]
[1737604293721,0.6213,3221.1,3220.8,0.9938]
[1737604293925,3.2078,3221.7,3220.7,0.5276]
[1737604293926,0.62135,3220.8,3220.7,0.5276]
[1737604294219,1.55304,3221.6,3219.9,0.4886]
[1737604294220,0.62143,3220.4,3219.9,0.4886]
[1737604294725,0.62143,3220.4,3219.9,1.11013]
[1737604295118,0.62143,3220.4,3219.9,0.4886]
[1737604295417,3.2078,3220.5,3219.9,0.4886]
[1737604295930,0.00465578,3220.7,3220.0,3.2078]
[1737604296120,0.00465578,3220.7,3220.6,0.62139]
[1737604296320,0.00465578,3220.7,3220.4,0.62142]
[1737604296617,0.00465578,3220.7,3219.6,1.55393]
[1737604296618,0.62143,3220.4,3219.6,3.2078]
[1737604296923,0.62143,3220.4,3218.8,3.2078]
[1737604296924,1.55373,3220.1,3218.8,3.2078]
[1737604297219,3.2078,3218.9,3218.6,0.977]
[1737604297424,3.2078,3219.4,3218.6,4.1848]
[1737604297718,0.62171,3219.0,3218.6,1.59877]
[1737604297925,0.62169,3219.1,3218.7,0.62175]
[1737604298122,0.62634578,3219.1,3218.7,0.62175]
[1737604298816,0.00465578,3219.1,3218.6,4.1848]
[1737604299023,0.00465578,3219.1,3218.9,0.62171]
[1737604299319,0.00465578,3219.1,3218.6,4.1848]
[1737604299624,3.2078,3219.4,3219.3,0.62164]
[1737604299823,3.2078,3219.8,3219.1,3.2078]
[1737604300022,3.2078,3219.8,3219.7,0.62157]
[1737604300218,3.2078,3219.8,3219.6,0.62159]
[1737604300424,3.2078,3219.8,3219.1,3.2078]
[1737604300425,3.2078,3219.8,3219.7,0.62157]
[1737604300819,3.2078,3219.8,3219.6,0.62158]
[1737604301127,0.00465578,3220.1,3219.1,3.2078]
[1737604301520,0.00465578,3220.1,3220.0,0.62151]
[1737604302222,0.00465578,3220.1,3220.0,41.42151]
[1737604302423,3.2078,3220.3,3220.2,0.62147]
[1737604303220,3.2078,3220.3,3220.0,40.8]
[1737604303221,3.82926,3220.3,3220.0,40.8]
[1737604303433,3.2078,3220.3,3220.1,0.62148]
[1737604303722,3.2078,3220.3,3220.0,40.8]
[1737604303723,0.62146,3220.3,3220.0,40.8]
[1737604304420,0.62146,3220.3,3220.0,41.4215]
[1737604304625,0.00465578,3220.5,3219.7,1.0044]
[1737604304818,0.62149,3220.1,3219.8,0.62154]
[1737604305018,0.62153,3219.9,3219.6,3.82938]
[1737604305218,0.00465578,3220.5,3219.5,0.6216]
[1737604305219,3.82936,3219.8,3219.5,0.6216]
[1737604305517,3.82936,3219.8,3219.2,40.8]
[1737604305716,3.2078,3219.8,3219.5,0.62159]
[1737604305916,3.82936,3219.8,3219.4,0.62161]
[1737604306123,3.82936,3219.8,3219.5,0.6216]
[1737604306313,3.2078,3219.8,3219.2,40.8]
[1737604306819,3.2078,3219.8,3219.1,3.2078]
[1737604306820,3.2078,3219.4,3219.0,0.5118]
[1737604307023,0.62168,3219.2,3219.0,0.5118]
[1737604307220,3.2078,3219.4,3218.9,1.58381]
[1737604307221,3.2078,3219.4,3218.9,0.9621]
[1737604307623,0.62169,3219.1,3218.9,0.9621]
[1737604307826,0.62169,3219.1,3218.9,41.7621]
[1737604308024,3.2078,3219.4,3218.9,41.7621]
[1737604308025,0.6217,3219.0,3218.9,40.8]
[1737604308630,0.62166,3219.2,3218.6,0.62178]
[1737604308817,0.62166,3219.2,3218.5,0.00465578]
[1737604308818,0.5028,3219.3,3218.5,0.00465578]
[1737604309121,3.2078,3219.4,3218.8,0.62174]
[1737604309327,0.62168,3219.1,3218.8,0.62174]
[1737604309623,0.62167,3219.2,3218.5,40.80465578]
[1737604309816,0.62167,3219.2,3218.8,0.62173]
[1737604310022,3.2078,3219.4,3218.8,0.62173]
[1737604310023,0.62169,3219.1,3218.8,0.62173]
[1737604310220,3.2078,3219.4,3218.5,40.80465578]
[1737604310730,3.82942,3219.4,3219.1,0.62167]
[1737604311026,3.2078,3219.4,3219.2,0.62166]
[1737604311226,3.2078,3219.4,3219.2,0.00224674]
[1737604311922,0.62161,3219.5,3219.2,0.62389674]
[1737604312128,0.62164,3219.3,3219.2,0.00224674]
[1737604313823,0.6216,3219.6,3219.3,0.62164]
[1737604314021,3.2078,3219.8,3219.3,0.62164]
[1737604314227,3.2078,3219.8,3219.2,0.00224674]
[1737604314527,3.21245578,3220.5,3219.7,3.2078]
[1737604314824,3.83386578,3220.5,3220.2,0.62145]
[1737604315130,3.21245578,3220.5,3219.8,1.5033]
[1737604315429,0.62143,3220.4,3220.3,40.8]
[1737604315630,3.21245578,3220.5,3219.8,1.5033]
[1737604315631,0.62153,3219.9,3219.8,1.5033]
[1737604316019,0.62153,3219.9,3219.8,42.3033]
[1737604316215,0.62153,3219.9,3219.8,41.3151]
[1737604316627,0.62158,3219.7,3219.4,0.62161]
[1737604316818,0.62154,3219.9,3219.5,0.62159]
[1737604317020,3.2078,3220.1,3219.6,40.8]
[1737604317221,0.62157,3219.7,3219.6,40.8]
[1737604317420,0.62157,3219.7,3219.2,3.21004674]
[1737604317421,0.62164,3219.3,3219.2,3.21004674]
[1737604318446,4.76154,3220.1,3219.2,3.21004674]
[1737604318630,0.62163,3219.4,3219.2,3.21004674]
[1737604319333,0.62164,3219.3,3219.2,0.00224674]
[1737604320225,0.6216,3219.5,3219.2,0.00224674]
[1737604320427,3.2078,3219.7,3219.2,0.00224674]
[1737604320733,3.2078,3219.7,3219.5,0.6216]
[1737604320920,3.2078,3220.1,3219.3,0.5234]
[1737604321121,8.35462168,3220.2,3219.6,3.2078]
[1737604321831,8.35462168,3220.2,3220.1,0.62149]
[1737604322226,3.59404168,3220.2,3220.1,6.07614223]
[1737604322526,4.94704075,3220.4,3220.1,5.90227024]
[1737604322733,4.94704075,3220.4,3220.3,0.62145]
[1737604322933,3.60977075,3220.4,3220.3,1.07610223]
[1737604323136,3.60977075,3220.4,3220.3,6.52372024]
[1737604323337,3.60977075,3220.4,3220.3,1.06906801]
[1737604323723,0.62143,3220.4,3220.3,0.44761801]
[1737604323929,0.00465578,3220.5,3220.0,3.2078]
[1737604324129,0.62149,3220.1,3220.0,3.2078]
[1737604324427,3.2078,3220.2,3219.3,3.2078]
[1737604324827,0.62162,3219.4,3219.3,3.2078]
[1737604325232,3.2078,3219.8,3219.3,3.2078]
[1737604325428,0.62162,3219.4,3219.3,3.2078]
[1737604327027,3.2078,3219.8,3219.2,0.00224674]
[1737604327233,0.62164,3219.3,3219.2,0.00224674]
[1737604327735,0.62166,3219.2,3218.4,0.6218]
[1737604327935,0.62176,3218.7,3218.4,0.62181]
[1737604328138,0.4767,3219.2,3218.6,40.8]
[1737604328535,2.162,3221.5,3219.1,0.62167]
[1737604328536,0.62163,3219.4,3219.1,0.62167]
[1737604328734,3.2078,3219.8,3218.8,3.2078]
[1737604329130,0.62162,3219.5,3218.8,3.2078]
[1737604329335,0.62161,3219.5,3219.2,0.62166]
[1737604330038,0.62158,3219.7,3218.8,3.2078]
[1737604330237,0.62151,3220.0,3219.2,3.2078]
[1737604330432,0.62149,3220.2,3219.9,0.62152]
[1737604330627,0.62147,3220.2,3220.0,0.62151]
[1737604330831,0.62147,3220.2,3219.6,3.2078]
[1737604331141,3.82923,3220.4,3219.6,3.2078]
[1737604331338,3.2078,3220.4,3220.3,0.62145]
[1737604331534,0.00465578,3220.5,3220.4,0.62143]
[1737604331935,0.00465578,3220.5,3220.4,41.42143]
[1737604332234,0.00465578,3220.5,3220.4,46.42143]
[1737604332630,0.00195578,3220.5,3220.4,46.42143]
[1737604332829,5.78e-06,3220.5,3220.4,46.87580998]
[1737604333036,0.5281,3221.7,3221.4,0.62124]
[1737604333234,3.2078,3222.1,3220.7,1.55343]
[1737604333235,1.0191,3222.5,3221.3,3.2078]
[1737604333444,0.62116,3221.9,3221.5,0.6212]
[1737604333647,0.62117,3221.8,3221.5,0.6212]
[1737604333944,3.2078,3222.2,3221.3,3.2078]
[1737604334136,0.6211,3222.2,3221.8,0.62114]
[1737604334341,0.00465578,3222.0,3221.8,3.2078]
[1737604334545,0.00465578,3222.0,3221.9,0.62112]
[1737604335038,0.00465578,3222.0,3221.8,3.2078]
[1737604335242,0.00465578,3222.0,3221.9,41.42114]
[1737604336134,0.00465578,3222.0,3221.9,40.8]
[1737604336338,0.00465578,3222.0,3221.9,41.42114]
[1737604336843,0.00465578,3222.0,3221.6,0.62584578]
[1737604337035,0.00465578,3222.0,3221.7,0.62117]
[1737604337643,0.00465578,3222.0,3221.6,0.00465578]
[1737604338042,0.62116,3221.8,3221.6,0.00465578]
[1737604338342,0.00465578,3222.0,3221.6,0.62585578]
[1737604338343,0.62578578,3222.0,3221.6,0.62585578]
[1737604338546,0.00465578,3222.0,3221.7,0.62118]
[1737604338749,0.62578578,3222.0,3221.6,0.62585578]
[1737604338936,0.00465578,3222.0,3221.6,0.00465578]
[1737604339138,0.00465578,3222.0,3221.7,0.62118]
[1737604339339,0.00465578,3222.0,3221.6,0.00465578]
[1737604339540,0.62118,3221.7,3221.6,0.00465578]
[1737604340637,0.00465578,3222.0,3221.4,3.2078]
[1737604340638,3.21245578,3222.0,3221.4,3.2078]
[1737604340955,3.21245578,3222.0,3221.0,3.2078]
[1737604341140,0.6213,3221.1,3221.0,3.2078]
[1737604341344,0.62133,3221.0,3220.6,41.42138]
[1737604341741,3.2078,3221.5,3220.6,40.8]
[1737604342245,3.2078,3221.5,3221.2,0.62126]
[1737604342444,3.2078,3221.5,3220.6,40.8]
[1737604342641,3.2078,3221.5,3221.4,0.62124]
[1737604343144,0.00465578,3222.0,3221.4,8.2078]
[1737604343340,0.00465578,3222.0,3221.9,0.62114]
[1737604343541,0.00465578,3222.0,3221.9,41.42114]
[1737604344051,0.00465578,3222.0,3221.9,40.8]
[1737604344748,0.00465578,3222.0,3221.9,41.42114]
[1737604344951,0.00465578,3222.0,3221.9,40.8]
[1737604345153,0.00465578,3222.0,3221.9,41.42114]
[1737604345345,0.00465578,3222.0,3221.9,40.8]
[1737604345552,0.00465578,3222.0,3221.9,41.42114]
[1737604345750,0.00465578,3222.0,3221.9,40.8]
[1737604346151,0.00465578,3222.0,3221.9,41.42114]
[1737604346340,0.00465578,3222.0,3221.9,40.8]
[1737604347855,0.62115,3221.9,3221.6,0.62119]
[1737604348352,0.00465578,3222.0,3221.7,40.8]
[1737604348547,0.00465578,3222.0,3221.8,0.62114]
[1737604348747,0.00465578,3222.0,3221.9,0.62114]
[1737604349052,0.00465578,3222.0,3221.9,3.82894]
[1737604351456,0.62577578,3222.0,3221.9,3.2078]
[1737604352263,0.62116,3221.8,3221.7,40.8]
[1737604352655,0.9967,3221.9,3220.9,3.2078]
[1737604352957,0.62137,3220.8,3220.5,3.83386578]
[1737604353150,0.62139,3220.7,3220.6,40.8]
[1737604353861,0.62139,3220.6,3220.5,3.21245578]
[1737604354154,1.11239,3220.6,3220.5,3.21245578]
[1737604354364,1.11239,3220.6,3220.5,44.01245578]
[1737604355850,1.11239,3220.6,3220.5,3.21245578]
[1737604357359,4.32019,3220.6,3220.5,0.00465578]
[1737604358056,3.6988,3220.6,3220.5,0.00465578]
[1737604358352,3.6988,3220.6,3220.5,0.62606578]
[1737604358553,4.32019,3220.6,3220.5,0.00465578]
[1737604358757,3.6988,3220.6,3220.5,0.00465578]
[1737604359153,4.32019,3220.6,3220.5,0.00465578]
[1737604359359,1.11239,3220.6,3220.5,0.00465578]
[1737604360954,0.491,3220.6,3220.5,0.00465578]
[1737604361157,3.2078,3221.0,3220.9,0.62133]
[1737604361759,3.2078,3221.0,3220.9,41.42133]
[1737604361953,3.2078,3221.0,3220.9,41.88427832]
[1737604362156,0.5282,3221.6,3220.9,44.47074832]
[1737604362363,0.5282,3221.6,3221.0,0.91651848]
[1737604362551,3.2078,3221.7,3221.1,0.46299722]
[1737604362757,3.2078,3221.7,3221.0,0.45350534]
[1737604362957,3.2078,3221.7,3221.1,0.4629923]
[1737604363153,3.2078,3221.7,3221.6,0.6212]
[1737604363648,0.00465578,3222.0,3221.9,0.62114]
[1737604363848,0.00465578,3222.0,3221.9,44.62894]
[1737604364956,0.00465578,3222.0,3221.9,40.8]
[1737604364957,0.62577578,3222.0,3221.9,40.8]
[1737604365463,0.62115,3221.9,3221.7,0.62118]
[1737604365867,0.62115,3221.9,3221.8,40.8]
[1737604366165,0.62115,3221.9,3221.6,0.6212]
[1737604366166,0.00465578,3222.0,3221.2,0.5214]
[1737604366361,0.00465578,3222.0,3221.9,0.62114]
[1737604366768,0.00465578,3222.0,3221.9,41.42114]
[1737604367268,3.2078,3223.0,3221.9,41.2628797]
[1737604367464,0.62091,3223.1,3222.8,0.62096]
[1737604367669,0.5069,3223.2,3222.8,0.62096]
[1737604367869,0.5069,3223.2,3222.2,3.2078]
[1737604367870,0.62094,3223.0,3222.7,0.62098]
[1737604368065,0.5069,3223.2,3222.2,3.2078]
[1737604368562,0.00465578,3223.0,3222.4,0.00465578]
[1737604368762,0.00465578,3223.0,3222.9,0.62095]
[1737604369463,0.00465578,3223.0,3222.9,46.42095]
[1737604369665,3.2078,3224.4,3223.0,1.55233]
[1737604369872,3.2078,3224.4,3223.1,0.46240675]
[1737604370061,0.62077,3223.9,3223.0,3.2078]
[1737604370265,0.6208,3223.7,3223.3,0.62086]
[1737604370573,3.2078,3224.0,3223.0,3.2078]
[1737604370574,0.62079,3223.8,3223.0,3.2078]
[1737604370773,0.00303028,3223.8,3223.0,3.2078]
[1737604370970,0.00303028,3223.8,3223.5,0.62082]
[1737604371163,0.00303028,3223.8,3223.0,3.2078]
[1737604371362,0.00303028,3223.8,3223.7,0.6208]
[1737604372073,0.00303028,3223.8,3223.7,41.4208]
[1737604372268,0.00303028,3223.8,3223.7,46.4208]
[1737604372574,0.00303028,3223.8,3223.7,40.8]
[1737604372871,0.00303028,3223.8,3223.7,41.25170624]
[1737604373175,0.00303028,3223.8,3223.7,0.45170624]
[1737604373674,0.00303028,3223.8,3223.6,0.62081]
[1737604373875,0.00303028,3223.8,3223.6,0.6208]
[1737604374176,0.00303028,3223.8,3223.5,0.62082]
[1737604374375,0.00303028,3223.8,3223.6,0.62081]
[1737604374965,0.00303028,3223.8,3223.6,0.6208]
[1737604375478,0.00303028,3223.8,3223.1,40.8]
[1737604375782,0.6208,3223.7,3223.1,40.8]
[1737604375964,0.00303028,3223.8,3223.0,3.2078]
[1737604375965,0.6209,3223.2,3223.0,3.2078]
[1737604376169,0.62087,3223.4,3223.0,3.82872]
[1737604376370,3.82864,3223.5,3223.0,3.2078]
[1737604376569,0.62087,3223.4,3223.0,3.2078]
[1737604376874,3.2078,3223.5,3223.3,0.62087]
[1737604377067,0.9903,3223.7,3223.2,0.62088]
[1737604377271,3.2078,3223.5,3223.0,3.2078]
[1737604377469,3.2078,3223.5,3223.1,0.62091]
[1737604377470,3.82865,3223.5,3223.1,0.62091]
[1737604377978,0.9903,3223.7,3223.0,3.2078]
[1737604378178,0.62083,3223.5,3223.1,0.62091]
[1737604378370,0.9903,3223.7,3223.0,3.2078]
[1737604378578,0.62083,3223.6,3223.3,0.62087]
[1737604379172,0.9903,3223.7,3223.0,3.2078]
[1737604379373,0.62381028,3223.8,3223.1,0.62091]
[1737604379578,0.62381028,3223.8,3223.6,0.62081]
[1737604379772,0.00303028,3223.8,3223.6,0.62081]
[1737604380373,0.6208,3223.7,3223.4,3.82864]
[1737604380578,0.00303028,3223.8,3223.5,0.62082]
[1737604380579,0.62382028,3223.8,3223.5,0.62082]
[1737604380778,0.62382028,3223.8,3223.6,0.62081]
[1737604380976,0.00303028,3223.8,3223.4,3.2078]
[1737604381185,0.00303028,3223.8,3223.7,0.6208]
[1737604381867,0.00303028,3223.8,3223.7,41.4208]
[1737604382682,0.00303028,3223.8,3223.7,40.8]
[1737604382979,0.00303028,3223.8,3223.7,41.4208]
[1737604383977,0.00303028,3223.8,3223.7,46.4208]
[1737604384275,3.2078,3224.8,3224.7,0.6206]
[1737604384882,0.4812,3225.1,3224.7,40.8]
[1737604385074,3.2078,3225.2,3225.1,0.62053]
[1737604385274,0.4812,3225.8,3225.4,0.62046]
[1737604385275,0.62043,3225.6,3225.4,0.62046]
[1737604385472,0.62043,3225.6,3225.1,3.2078]
[1737604385473,0.4812,3225.8,3225.1,3.2078]
[1737604385672,0.25238343,3226.6,3224.7,0.4926]
[1737604385673,12.6305588,3226.4,3225.6,3.2078]
[1737604385990,0.62032,3226.2,3225.9,0.62036]
[1737604386279,12.6305588,3226.4,3225.6,3.2078]
[1737604386473,0.6203,3226.3,3226.0,0.62035]
[1737604386675,0.4929,3226.4,3226.1,0.62033]
[1737604387380,1.11319,3226.4,3226.1,0.62033]
[1737604387576,0.4929,3226.4,3225.6,3.2078]
[1737604387781,0.62037,3226.0,3225.6,3.82823]
[1737604387981,3.2078,3225.9,3225.1,3.2078]
[1737604388485,0.62036,3226.0,3225.7,0.6204]
[1737604388783,0.62033,3226.2,3225.7,0.62041]
[1737604389084,3.7007,3226.4,3225.9,0.62036]
[1737604389085,0.62031,3226.3,3225.9,0.62036]
[1737604389272,3.7007,3226.4,3225.6,3.2078]
[1737604389473,4.32098,3226.4,3226.1,0.62033]
[1737604389678,0.62031,3226.3,3225.9,0.62036]
[1737604389876,0.00287083,3226.1,3225.6,3.2078]
[1737604390385,0.62038,3225.9,3225.6,3.2078]
[1737604391383,3.82817,3226.0,3225.6,3.82823]
[1737604391684,3.2078,3226.0,3225.7,0.62041]
[1737604391983,3.2078,3226.0,3225.6,3.2078]
[1737604392484,0.00287083,3226.1,3225.6,3.2078]
[1737604393187,0.62037,3226.0,3225.6,3.82822]
[1737604393386,0.00287083,3226.1,3225.6,3.2078]
[1737604393588,0.62036,3226.0,3225.6,3.82822]
[1737604393986,0.62036,3226.0,3225.7,0.6204]
[1737604394187,0.62321083,3226.1,3225.8,0.62039]
[1737604394389,0.00287083,3226.1,3225.6,3.2078]
[1737604394586,0.00287083,3226.1,3226.0,0.62036]
[1737604394789,0.00287083,3226.1,3225.9,0.62037]
[1737604394982,0.62322083,3226.1,3226.0,40.8]
[1737604395381,0.00287083,3226.1,3226.0,40.8]
[1737604395583,0.62321083,3226.1,3226.0,40.8]
[1737604396286,0.00287083,3226.1,3226.0,40.8]
[1737604396687,0.62321083,3226.1,3226.0,40.8]
[1737604398599,3.21067083,3226.1,3225.6,3.2078]
[1737604398803,0.62037,3226.0,3225.6,3.2078]
[1737604399003,3.21067083,3226.1,3226.0,0.62036]
[1737604399204,0.00287083,3226.1,3226.0,0.62036]
[1737604399397,0.00287083,3226.1,3225.6,44.0078]
[1737604399709,0.6204,3225.8,3225.6,44.62822]
[1737604400002,3.82821,3225.7,3225.6,40.8]
[1737604400190,0.62061,3224.7,3224.6,0.00465578]
[1737604400590,3.2078,3225.1,3224.6,0.00465578]
[1737604400800,3.2078,3225.1,3225.0,0.62055]
[1737604401208,3.2078,3225.1,3225.0,41.42055]
[1737604401908,3.2078,3225.1,3225.0,40.8]
[1737604402498,0.9943,3226.0,3225.0,40.8]
[1737604402499,3.2078,3225.6,3225.0,40.8]
[1737604403304,0.497,3225.9,3225.0,40.8]
[1737604403510,0.497,3225.9,3225.4,0.62047]
[1737604403812,0.62044,3225.6,3225.4,0.62047]
[1737604404402,0.497,3225.9,3225.4,0.62047]
[1737604404604,0.62045,3225.6,3225.1,0.62053]
[1737604404808,0.497,3225.9,3225.0,40.8]
[1737604405009,0.62053,3225.1,3225.0,40.8]
[1737604407911,3.82833,3225.1,3225.0,40.8]
[1737604408706,3.2078,3225.1,3224.6,0.00465578]
[1737604408906,0.62061,3224.7,3224.6,0.00465578]
[1737604409306,0.62061,3224.7,3224.6,40.80465578]
[1737604410216,0.62059,3224.8,3224.6,41.42526578]
[1737604410407,0.9671,3225.0,3224.8,0.62058]
[1737604410708,1.58767,3225.0,3224.8,0.62058]
[1737604411105,0.9671,3225.0,3224.6,40.80465578]
[1737604411306,0.62061,3224.7,3224.6,40.80465578]
[1737604413116,3.82841,3224.7,3224.6,40.80465578]
[1737604413711,3.2078,3224.7,3224.6,41.42528578]
[1737604413908,3.82841,3224.7,3224.6,40.80465578]
[1737604414114,0.4918,3225.6,3224.6,44.81300299]
[1737604414318,3.2078,3225.7,3224.7,0.80054721]
[1737604414511,0.62046,3225.5,3225.3,0.62048]
[1737604414709,3.82823,3225.7,3225.4,40.8]
[1737604415017,3.21067083,3226.1,3225.5,0.80047741]
[1737604415311,3.21067083,3226.1,3226.0,0.62036]
[1737604415512,0.00287083,3226.1,3226.0,1.07810491]
[1737604415713,0.00287083,3226.1,3226.0,1.52650948]
[1737604416113,0.00287083,3226.1,3226.0,42.32650948]
[1737604416513,0.00287083,3226.1,3226.0,42.66908483]
[1737604418611,0.00287083,3226.1,3226.0,42.66895833]
[1737604419617,0.00287083,3226.1,3226.0,42.32642693]
[1737604420225,0.00287083,3226.1,3226.0,41.86876457]
[1737604420719,0.00287083,3226.1,3226.0,41.88778058]
[1737604422326,0.00287083,3226.1,3226.0,42.67835963]
[1737604422722,0.00287083,3226.1,3226.0,41.86850667]
[1737604423024,0.00287083,3226.1,3226.0,42.67303835]
[1737604424629,0.00287083,3226.1,3226.0,42.33062611]
[1737604424826,0.62321083,3226.1,3226.0,40.8]
[1737604425021,0.00287083,3226.1,3225.9,3.2078]
[1737604425227,0.62036,3226.0,3225.9,3.2078]
[1737604425621,0.00287083,3226.1,3225.9,3.82817]
[1737604425822,0.00287083,3226.1,3226.0,0.62036]
[1737604426424,0.00287083,3226.1,3225.9,3.2078]
[1737604426730,0.00287083,3226.1,3225.6,0.62042]
[1737604426927,0.00287083,3226.1,3225.0,0.5076]
[1737604427123,3.2078,3225.9,3225.1,41.24806353]
[1737604427429,0.62045,3225.6,3225.3,0.62047]
[1737604427622,0.62051,3225.2,3225.1,40.8]
[1737604428016,0.5232,3225.5,3225.1,40.8]
[1737604428229,1.14366,3225.5,3225.3,0.62048]
[1737604428428,0.5232,3225.5,3225.1,40.8]
[1737604428731,1.14366,3225.5,3225.3,0.62049]
[1737604428932,0.5232,3225.5,3225.4,0.62047]
[1737604429223,3.2078,3225.9,3225.4,3.2078]
[1737604429428,0.6204,3225.8,3225.6,0.62042]
[1737604429627,3.2078,3225.9,3225.6,0.62042]
[1737604429832,3.2078,3225.9,3225.1,40.8]
[1737604430217,0.62041,3225.8,3225.5,0.62043]
[1737604430423,0.62043,3225.7,3225.5,0.62043]
[1737604430629,3.2078,3225.9,3225.1,40.8]
[1737604431028,0.62046,3225.5,3225.3,0.62048]
[1737604431429,3.2078,3225.9,3225.1,40.8]
[1737604431620,3.2078,3225.9,3225.2,0.62051]
[1737604431825,0.6204,3225.8,3225.1,41.42052]
[1737604432136,3.2078,3225.9,3224.6,3.21245578]
[1737604432427,3.2078,3225.4,3224.7,0.6206]
[1737604432626,0.62054,3225.1,3224.9,0.62057]
[1737604432827,0.62055,3225.0,3224.8,40.8]
[1737604433028,0.4783,3225.2,3224.8,41.42058]
[1737604433226,0.62056,3225.0,3224.8,41.42058]
[1737604433431,0.4783,3225.2,3224.8,40.8]
[1737604433626,0.62055,3225.0,3224.8,41.42058]
[1737604433934,0.62057,3224.9,3224.8,40.8]
[1737604435330,3.2078,3225.0,3224.6,0.00465578]
[1737604435331,0.62061,3224.7,3224.6,0.00465578]
[1737604435721,0.62061,3224.7,3224.6,40.80465578]
[1737604436331,0.62061,3224.7,3224.6,0.00465578]
[1737604440928,3.2078,3225.0,3224.8,0.62058]
[1737604441129,0.4783,3225.2,3225.1,0.62053]
[1737604441326,3.2078,3225.4,3225.3,0.62049]
[1737604441732,3.2078,3225.4,3225.3,41.42049]
[1737604441929,3.82827,3225.4,3225.3,40.8]
[1737604442532,3.2078,3225.4,3224.6,0.62527578]
[1737604442730,0.5002,3225.3,3224.7,0.6206]
[1737604442926,0.5002,3225.3,3224.6,0.00465578]
[1737604443132,0.62059,3224.8,3224.7,40.8]
[1737604443735,0.62061,3224.7,3224.6,0.00465578]
[1737604444339,0.62081,3223.7,3223.4,3.82865]
[1737604444642,3.2078,3223.9,3223.4,3.2078]
[1737604444833,0.62083,3223.6,3223.5,40.8]
[1737604445029,0.62081,3223.7,3223.5,40.8]
[1737604445544,1.14839,3223.8,3223.5,41.42083]
[1737604445736,0.6208,3223.7,3223.5,40.8]
[1737604446038,1.14839,3223.8,3223.5,41.42084]
[1737604446340,0.5276,3223.8,3223.6,0.62081]
[1737604446539,1.14838,3223.8,3223.5,41.42083]
[1737604446842,0.5276,3223.8,3223.6,0.62082]
[1737604447042,1.14838,3223.8,3223.5,41.42083]
[1737604447233,0.5276,3223.8,3223.5,41.42083]
[1737604447435,0.5276,3223.8,3223.5,40.8]
[1737604447637,1.14839,3223.8,3223.5,41.42083]
[1737604447839,0.5276,3223.8,3223.5,40.8]
[1737604448143,0.62081,3223.7,3223.5,40.8]
[1737604448343,0.62082,3223.6,3223.5,40.8]
[1737604448538,0.5276,3223.8,3223.3,0.00465578]
[1737604448737,0.62086,3223.4,3223.3,0.00465578]
[1737604449837,3.2078,3223.5,3223.3,0.00465578]
[1737604450143,0.62083,3223.6,3223.3,0.62551578]
[1737604450639,0.5276,3223.8,3223.3,0.62551578]
[1737604450940,0.62085,3223.5,3223.3,0.00465578]
[1737604451139,0.5276,3223.8,3223.3,0.00465578]
[1737604451342,0.62086,3223.4,3223.3,0.00465578]
[1737604452244,1.13186,3223.4,3223.3,0.00465578]
[1737604453234,0.5276,3223.8,3223.3,0.00465578]
[1737604453440,0.6208,3223.7,3223.4,0.62084]
[1737604454134,0.62082,3223.6,3223.3,0.62552578]
[1737604454636,0.62084,3223.5,3223.3,0.62552578]
[1737604454842,0.62084,3223.5,3223.3,0.00465578]
[1737604455044,0.5276,3223.8,3223.3,0.00465578]
[1737604455336,0.62085,3223.5,3223.3,0.00465578]
[1737604456335,0.62086,3223.4,3223.3,0.00465578]
[1737604456838,3.2078,3223.5,3222.4,3.2078]
[1737604457341,3.2078,3223.5,3222.5,41.2898]
[1737604457642,0.62093,3223.1,3222.5,41.2898]
[1737604457842,0.62093,3223.1,3222.9,0.62095]
[1737604458244,3.2078,3223.5,3222.5,41.29445578]
[1737604458443,0.62091,3223.2,3222.9,3.82874]
[1737604458634,3.2078,3223.5,3222.9,3.2078]
[1737604458840,0.62093,3223.1,3222.9,3.82875]
[1737604459041,0.62093,3223.0,3222.9,3.2078]
[1737604459242,0.62093,3223.1,3222.9,3.82875]
[1737604459437,0.62093,3223.0,3222.9,3.82875]
[1737604460643,0.62093,3223.0,3222.9,0.62095]
[1737604461046,0.62093,3223.0,3222.8,0.62096]
[1737604461248,0.62093,3223.0,3222.9,0.62095]
[1737604461746,0.62091,3223.2,3223.0,0.62092]
[1737604461941,3.6986,3223.5,3222.9,0.62094]
[1737604462438,0.62093,3223.0,3222.9,0.62094]
[1737604463043,3.6986,3223.5,3222.9,0.62094]
[1737604463344,0.62093,3223.0,3222.9,0.62094]
[1737604463740,0.62093,3223.0,3222.5,41.29445578]
[1737604463942,0.62093,3223.0,3222.8,0.62096]
[1737604464337,0.62093,3223.0,3222.9,0.62095]
[1737604464838,0.62093,3223.0,3222.8,0.62096]
[1737604465141,3.6986,3223.5,3222.5,41.29445578]
[1737604465445,0.62095,3223.0,3222.8,0.62096]
[1737604465644,0.62095,3223.0,3222.9,0.62095]
[1737604465945,3.6986,3223.5,3222.5,41.29445578]
[1737604466247,0.6209,3223.2,3223.1,0.62091]
[1737604466432,0.62092,3223.1,3223.0,0.62092]
[1737604466636,3.6986,3223.5,3222.6,1.5525]
[1737604466840,0.62091,3223.2,3222.8,3.2078]
[1737604467144,3.82865,3223.5,3223.4,0.62086]
[1737604467340,3.2078,3223.5,3223.4,0.62086]
[1737604467943,0.00465578,3223.9,3223.8,0.62078]
[1737604467944,3.21245578,3223.9,3223.8,0.62078]
[1737604468739,3.83321578,3223.9,3223.8,0.62078]
[1737604468938,0.00465578,3223.9,3223.8,0.62078]
[1737604469453,0.00465578,3223.9,3223.8,1.08322936]
[1737604469641,0.00465578,3223.9,3223.8,1.08322967]
[1737604469949,0.00465578,3223.9,3223.8,1.53165753]